fUST/lending_fUST_20250722
["ID","MTS","AMOUNT","RATE_DAILY","PERIOD"]
[373884108,1753138244095,-831.12,0.00017892,2]
[373884110,1753138244105,-460.0,0.00017892,2]
[373884112,1753138244114,-460.45881149,0.00017893,2]
[373884114,1753138244124,-460.0,0.00017893,2]
[373884116,1753138244133,-460.0,0.00017893,2]
[373884118,1753138244143,-200.24926051,0.00017893,2]
[373884120,1753138244152,-370.0,0.00017893,2]
[373884122,1753138244161,-460.0,0.00017893,2]
[373884124,1753138244173,-460.0,0.00017893,2]
[373884126,1753138244182,-460.0,0.00017893,2]
[373884128,1753138244192,-156.63597104,0.00017893,2]
[373884130,1753138244201,-460.0,0.00017893,2]
[373884132,1753138244210,-549.93,0.00017893,2]
[373884134,1753138244219,-549.93,0.00017893,2]
[373884135,1753138244228,-549.93,0.00017893,2]
[373884137,1753138244237,-549.93,0.00017893,2]
[373884139,1753138244247,-549.93,0.00017893,2]
[373884141,1753138244256,-549.93,0.00017893,2]
[373884143,1753138244265,-831.12,0.00017893,2]
[373884145,1753138244275,-831.12,0.00017893,2]
[373884147,1753138244284,-831.12,0.00017893,2]
[373884149,1753138244293,-831.12,0.00017893,2]
[373884151,1753138244303,-831.12,0.00017893,2]
[373884152,1753138244313,-460.0,0.00017894,2]
[373884153,1753138244323,-460.0,0.00017894,2]
[373884154,1753138244332,-460.0,0.00017894,2]
[373884155,1753138244342,-549.93,0.00017894,2]
[373884156,1753138244351,-549.93,0.00017894,2]
[373884157,1753138244362,-5596.75,0.00017894,2]
[373884158,1753138244371,-831.12,0.00017894,2]
[373884160,1753138244381,-831.12,0.00017894,2]
[373884162,1753138244392,-1369.98,0.00017894,2]
[373884164,1753138244403,-460.0,0.00017894,2]
[373884166,1753138244412,-2011.86,0.00017894,2]
[373884168,1753138244422,-1335.02,0.00017895,2]
[373884170,1753138244431,-1950.33,0.00017895,2]
[373884172,1753138244441,-549.93,0.00017999,2]
[373884175,1753138244450,-549.93,0.00017999,2]
[373884176,1753138244459,-151.0,0.00018,2]
[373884179,1753138244471,-190.425165,0.00018,2]
[373884181,1753138244481,-151.0,0.00018,2]
[373884183,1753138244490,-190.425165,0.00018,2]
[373884185,1753138244499,-151.0,0.00018,2]
[373884187,1753138244508,-653.3732873,0.00018,2]
[373884189,1753138244518,-549.93,0.00018065,2]
[373884191,1753138244528,-7419.55797821,0.00018096,2]
[373884192,1753138244537,-460.0,0.00018145,2]
[373884195,1753138244549,-460.0,0.00018145,2]
[373884197,1753138244561,-460.0,0.00018145,2]
[373884199,1753138244570,-2031.43,0.00018145,2]
[373884201,1753138244580,-460.0,0.00018145,2]
[373884203,1753138244589,-460.0,0.00018146,2]
[373884205,1753138244599,-460.0,0.00018146,2]
[373884207,1753138244608,-460.0,0.00018146,2]
[373884209,1753138244618,-460.0,0.00018146,2]
[373884211,1753138244627,-5512.82,0.00018146,2]
[373884213,1753138244636,-460.0,0.00018146,2]
[373884215,1753138244646,-504.40926229,0.00018146,2]
[373884217,1753138244656,-229.07638812,0.00018146,2]
[373884219,1753138244665,-2177.97321634,0.00018146,2]
[373884221,1753138244681,-1145.15721172,0.00018146,2]
[373884224,1753138244693,-711.48957194,0.00018146,2]
[373884226,1753138244704,-738.67,0.00018146,2]
[373884228,1753138244713,-460.0,0.00018146,2]
[373884230,1753138244723,-460.0,0.00018146,2]
[373884232,1753138244732,-410.34,0.00018146,2]
[373884234,1753138244741,-460.0,0.00018146,2]
[373884236,1753138244751,-368.32373879,0.00018146,2]
[373884238,1753138244760,-2892.38,0.00018146,2]
[373884240,1753138244769,-460.0,0.00018146,2]
[373884242,1753138244779,-249.27,0.00018146,2]
[373884244,1753138244789,-460.0,0.00018146,2]
[373884246,1753138244798,-460.0,0.00018146,2]
[373884248,1753138244808,-460.0,0.00018146,2]
[373884250,1753138244818,-2784.77,0.00018146,2]
[373884252,1753138244828,-460.0,0.00018146,2]
[373884254,1753138244837,-1564.93,0.00018146,2]
[373884256,1753138244847,-460.0,0.00018146,2]
[373884259,1753138244857,-460.0,0.00018146,2]
[373884261,1753138244866,-556.3,0.00018146,2]
[373884263,1753138244875,-460.0,0.00018146,2]
[373884264,1753138244885,-460.0,0.00018146,2]
[373884266,1753138244894,-460.0,0.00018146,2]
[373884269,1753138244904,-460.0,0.00018146,2]
[373884271,1753138244913,-509.48,0.00018146,2]
[373884273,1753138244923,-151.0,0.00018156,2]
[373884275,1753138244932,-460.0,0.00018163,2]
[373884277,1753138244941,-460.0,0.00018163,2]
[373884279,1753138244951,-460.0,0.00018163,2]
[373884281,1753138244960,-460.0,0.00018163,2]
[373884283,1753138244969,-460.0,0.00018163,2]
[373884285,1753138244978,-460.0,0.00018163,2]
[373884287,1753138244988,-460.0,0.00018163,2]
[373884289,1753138244997,-460.0,0.00018163,2]
[373884291,1753138245006,-460.0,0.00018163,2]
[373884293,1753138245015,-460.0,0.00018163,2]
[373884295,1753138245024,-460.0,0.00018163,2]
[373884297,1753138245034,-460.0,0.00018163,2]
[373884299,1753138245043,-460.0,0.00018163,2]
[373884301,1753138245053,-387.77337239,0.00018163,2]
[373884303,1753138245062,-460.0,0.00018163,2]
[373884305,1753138245071,-460.0,0.00018163,2]
[373884307,1753138245081,-460.0,0.00018163,2]
[373884309,1753138245089,-460.0,0.00018163,2]
[373884311,1753138245098,-460.0,0.00018163,2]
[373884313,1753138245108,-802.12,0.00018163,2]
[373884315,1753138245117,-781.75,0.00018163,2]
[373884317,1753138245127,-460.0,0.00018163,2]
[373884319,1753138245136,-460.0,0.00018163,2]
[373884321,1753138245145,-584.22,0.00018163,2]
[373884323,1753138245154,-460.0,0.00018163,2]
[373884325,1753138245163,-760.45056844,0.00018163,2]
[373884437,1753138246192,-311.55943156,0.00018163,2]
[373884439,1753138246202,-498.33,0.00018163,2]
[373884441,1753138246211,-349.20956854,0.00018163,2]
[373884443,1753138246223,-110.79043146,0.00018163,2]
[373884445,1753138246233,-460.0,0.00018163,2]
[373884447,1753138246243,-460.0,0.00018163,2]
[373884449,1753138246252,-460.0,0.00018163,2]
[373884451,1753138246262,-460.0,0.00018163,2]
[373884453,1753138246271,-460.0,0.00018163,2]
[373884456,1753138246280,-1488.91,0.00018163,2]
[373884458,1753138246294,-801.75,0.00018163,2]
[373884460,1753138246303,-460.0,0.00018163,2]
[373884461,1753138246313,-836.89,0.00018163,2]
[373884463,1753138246322,-1411.22,0.00018163,2]
[373884465,1753138246331,-460.000001,0.00018163,2]
[373884467,1753138246341,-509.47,0.00018163,2]
[373884470,1753138246351,-460.0,0.00018163,2]
[373884472,1753138246360,-460.0,0.00018163,2]
[373884473,1753138246370,-528.11373848,0.00018163,2]
[373884475,1753138246379,-460.0,0.00018163,2]
[373884478,1753138246388,-378.06606047,0.00018164,2]
[373884480,1753138246398,-460.0,0.00018164,2]
[373884482,1753138246407,-460.0,0.00018164,2]
[373884484,1753138246416,-460.0,0.00018164,2]
[373884486,1753138246425,-500.95,0.00018164,2]
[373884488,1753138246435,-460.0,0.00018164,2]
[373884489,1753138246444,-966.59374859,0.00018164,2]
[373885509,1753138424054,-8157.0,0.00017508,3]
[373885510,1753138768305,357.843033,0.00016707,2]
[373885513,1753138955270,985.38580833,0.00016122,2]
[373885516,1753139140109,-246.0,0.0001687,2]
[373885517,1753139140130,-183.0,0.00016871,2]
[373885518,1753139140151,-284.17839939,0.00017507,2]
[373885521,1753139341841,152.674666,0.00023,30]
[373885541,1753139432374,-916.0,0.00017507,2]
[373885543,1753139432384,-300.0,0.00017507,2]
[373885545,1753139432395,-1200.0,0.00017507,2]
[373885547,1753139432404,-1755.78518811,0.00017508,3]
[373885549,1753139432420,-2794.75207408,0.00017508,3]
[373885575,1753139439068,-2661.749132,0.00017508,3]
[373885577,1753139439078,-150.0,0.00017613,2]
[373885579,1753139439088,-160.0,0.00017754,2]
[373885581,1753139439097,-160.0,0.00017754,2]
[373885583,1753139439106,-460.0,0.00017768,2]
[373885585,1753139439116,-1531.71617548,0.00017769,2]
[373885587,1753139439125,-8157.18124979,0.00017769,2]
[373885588,1753139439134,-500.0,0.00017769,2]
[373885590,1753139439144,-362.38910693,0.00017769,2]
[373885592,1753139439153,-500.0,0.00017769,2]
[373885594,1753139439163,-500.0,0.00017769,2]
[373885596,1753139439172,-168.77284581,0.00017769,2]
[373885598,1753139439181,-500.0,0.00017769,2]
[373885600,1753139439190,-582.08604994,0.00017769,2]
[373885601,1753139439199,-500.0,0.00017769,2]
[373885603,1753139439208,-500.0,0.00017769,2]
[373885605,1753139439218,-500.0,0.00017769,2]
[373885607,1753139439227,-500.0,0.00017769,2]
[373885609,1753139439236,-500.0,0.00017769,2]
[373885611,1753139439245,-500.0,0.00017769,2]
[373885613,1753139439254,-500.0,0.00017769,2]
[373885615,1753139439263,-500.0,0.00017769,2]
[373885616,1753139439273,-500.0,0.00017769,2]
[373885618,1753139439283,-500.0,0.00017769,2]
[373885620,1753139439292,-500.0,0.00017769,2]
[373885622,1753139439302,-500.0,0.00017769,2]
[373885624,1753139439311,-500.0,0.00017769,2]
[373885626,1753139439321,-500.0,0.00017769,2]
[373885628,1753139439330,-500.0,0.00017769,2]
[373885629,1753139439339,-500.0,0.00017769,2]
[373885631,1753139439349,-500.0,0.00017769,2]
[373885633,1753139439358,-500.0,0.00017769,2]
[373885635,1753139439369,-500.0,0.00017769,2]
[373885637,1753139439378,-500.0,0.00017769,2]
[373885639,1753139439387,-500.0,0.00017769,2]
[373885641,1753139439397,-500.0,0.00017769,2]
[373885643,1753139439407,-500.0,0.00017769,2]
[373885645,1753139439417,-500.0,0.00017769,2]
[373885646,1753139439427,-500.0,0.00017769,2]
[373885648,1753139439437,-500.0,0.00017769,2]
[373885650,1753139439450,-500.0,0.00017769,2]
[373885652,1753139439460,-500.0,0.00017769,2]
[373885654,1753139439469,-500.0,0.00017769,2]
[373885656,1753139439478,-500.0,0.00017769,2]
[373885658,1753139439487,-500.0,0.00017769,2]
[373885660,1753139439497,-500.0,0.00017769,2]
[373885662,1753139439506,-500.0,0.00017769,2]
[373885663,1753139439516,-500.0,0.00017769,2]
[373885665,1753139439526,-500.0,0.00017769,2]
[373885667,1753139439535,-500.0,0.00017769,2]
[373885669,1753139439544,-500.0,0.00017769,2]
[373885671,1753139439554,-586.73747725,0.00017769,2]
[373885673,1753139439563,-586.73747725,0.00017769,2]
[373885675,1753139439572,-586.73747725,0.00017769,2]
[373885677,1753139439582,-586.73747725,0.00017769,2]
[373885679,1753139439591,-586.73747725,0.00017769,2]
[373885680,1753139439600,-586.73747725,0.00017769,2]
[373885682,1753139439610,-586.73747725,0.00017769,2]
[373885684,1753139439620,-586.73747725,0.00017769,2]
[373885686,1753139439629,-586.73747725,0.00017769,2]
[373885688,1753139439639,-586.73747725,0.00017769,2]
[373885690,1753139439648,-586.73747725,0.00017769,2]
[373885692,1753139439657,-586.73747725,0.00017769,2]
[373885694,1753139439667,-586.73747725,0.00017769,2]
[373885696,1753139439676,-586.73747725,0.00017769,2]
[373885697,1753139439685,-586.73747725,0.00017769,2]
[373885699,1753139439694,-586.73747725,0.00017769,2]
[373885701,1753139439704,-586.73747725,0.00017769,2]
[373885703,1753139439713,-586.73747725,0.00017769,2]
[373885705,1753139439722,-586.73747725,0.00017769,2]
[373885707,1753139439732,-586.73747725,0.00017769,2]
[373885709,1753139439741,-586.73747725,0.00017769,2]
[373885711,1753139439750,-586.73747725,0.00017769,2]
[373885713,1753139439759,-586.73747725,0.00017769,2]
[373885714,1753139439769,-586.73747725,0.00017769,2]
[373885716,1753139439778,-586.73747725,0.00017769,2]
[373885718,1753139439788,-586.73747725,0.00017769,2]
[373885720,1753139439797,-586.73747725,0.00017769,2]
[373885722,1753139439807,-586.73747725,0.00017769,2]
[373885724,1753139439820,-586.73747725,0.00017769,2]
[373885726,1753139439829,-586.73747725,0.00017769,2]
[373885728,1753139439838,-567.17956135,0.00017769,2]
[373885730,1753139439847,-567.17956135,0.00017769,2]
[373885731,1753139439859,-567.17956135,0.00017769,2]
[373885734,1753139439868,-567.17956135,0.00017769,2]
[373885736,1753139439878,-567.17956135,0.00017769,2]
[373885738,1753139439888,-567.17956135,0.00017769,2]
[373885740,1753139439897,-567.17956135,0.00017769,2]
[373885742,1753139439908,-567.17956135,0.00017769,2]
[373885744,1753139439917,-567.17956135,0.00017769,2]
[373885746,1753139439926,-567.17956135,0.00017769,2]
[373885749,1753139439936,-567.17956135,0.00017769,2]
[373885751,1753139439945,-567.17956135,0.00017769,2]
[373885752,1753139439954,-567.17956135,0.00017769,2]
[373885754,1753139439963,-567.17956135,0.00017769,2]
[373885756,1753139439973,-567.17956135,0.00017769,2]
[373885758,1753139439982,-567.17956135,0.00017769,2]
[373885760,1753139439991,-567.17956135,0.00017769,2]
[373885762,1753139440001,-567.17956135,0.00017769,2]
[373885764,1753139440010,-567.17956135,0.00017769,2]
[373885766,1753139440020,-567.17956135,0.00017769,2]
[373885768,1753139440029,-567.17956135,0.00017769,2]
[373885769,1753139440039,-607.69238714,0.00017769,2]
[373885771,1753139440049,-607.69238714,0.00017769,2]
[373885773,1753139440058,-607.69238714,0.00017769,2]
[373885775,1753139440067,-607.69238714,0.00017769,2]
[373885777,1753139440077,-607.69238714,0.00017769,2]
[373885779,1753139440085,-607.69238714,0.00017769,2]
[373885781,1753139440094,-607.69238714,0.00017769,2]
[373885783,1753139440103,-104461.05010166,0.0001777,2]
[373885784,1753139440113,-151.85,0.00017861,3]
[373885786,1753139440124,-455.59,0.00017861,3]
[373885788,1753139440133,-607.41,0.00017862,3]
[373885790,1753139440143,-303.7,0.00017862,3]
[373885792,1753139440152,-438.07824149,0.00017868,2]
[373885794,1753139440162,-3390.2,0.00017868,2]
[373885796,1753139440171,-677.12,0.00017868,2]
[373885798,1753139440181,-460.0,0.00017868,2]
[373885800,1753139440190,-460.0,0.00017868,2]
[373885802,1753139440200,-2776.99,0.00017868,2]
[373885804,1753139440209,-460.0,0.00017868,2]
[373885805,1753139440218,-460.0,0.00017868,2]
[373885807,1753139440228,-460.0,0.00017868,2]
[373885810,1753139440242,-1434.52,0.00017868,2]
[373885811,1753139440251,-460.0,0.00017868,2]
[373885813,1753139440260,-509.94,0.00017868,2]
[373885815,1753139440270,-1906.08,0.00017868,2]
[373885817,1753139440280,-460.0,0.00017868,2]
[373885819,1753139440290,-460.0,0.00017868,2]
[373885821,1753139440299,-856.14,0.00017868,2]
[373885823,1753139440308,-460.0,0.00017868,2]
[373885825,1753139440317,-460.0,0.00017869,2]
[373885827,1753139440327,-460.0,0.00017869,2]
[373885829,1753139440336,-412.03618909,0.00017869,2]
[373885830,1753139440346,-460.0,0.00017869,2]
[373885832,1753139440355,-460.0,0.00017869,2]
[373885835,1753139440368,-426.1304008,0.00017869,2]
[373885836,1753139440380,-460.0,0.00017869,2]
[373885838,1753139440389,-460.0,0.00017869,2]
[373885840,1753139440398,-460.0,0.00017869,2]
[373885842,1753139440407,-460.0,0.00017869,2]
[373885844,1753139440417,-460.0,0.00017869,2]
[373885846,1753139440427,-460.0,0.00017869,2]
[373885857,1753139440436,-460.0,0.00017869,2]
[373885859,1753139440541,-460.0,0.00017869,2]
[373885861,1753139440551,-460.73549149,0.00017869,2]
[373885863,1753139440561,-460.0,0.00017869,2]
[373885865,1753139440570,-460.0,0.00017869,2]
[373885867,1753139440580,-461.68568256,0.00017869,2]
[373885869,1753139440589,-460.0,0.00017869,2]
[373885870,1753139440598,-460.0,0.00017869,2]
[373885872,1753139440608,-460.0,0.00017869,2]
[373885874,1753139440618,-231.70147138,0.00017869,2]
[373885876,1753139440630,-460.0,0.00017869,2]
[373885878,1753139440640,-460.0,0.00017869,2]
[373885880,1753139440650,-303.66756669,0.00017869,2]
[373885882,1753139440660,-460.0,0.00017869,2]
[373885884,1753139440669,-460.0,0.00017869,2]
[373885886,1753139440678,-460.0,0.00017869,2]
[373885888,1753139440688,-5053.42,0.00017869,2]
[373885890,1753139440697,-460.0,0.00017869,2]
[373885891,1753139440706,-460.0,0.00017869,2]
[373885893,1753139440715,-460.0,0.00017869,2]
[373885895,1753139440725,-460.0,0.00017869,2]
[373885897,1753139440734,-460.0,0.00017869,2]
[373885899,1753139440743,-460.0,0.00017869,2]
[373885901,1753139440752,-460.0,0.00017869,2]
[373885903,1753139440761,-460.0,0.00017869,2]
[373885905,1753139440771,-460.0,0.00017869,2]
[373885906,1753139440780,-460.0,0.00017869,2]
[373885908,1753139440789,-460.0,0.00017869,2]
[373885910,1753139440798,-460.0,0.00017869,2]
[373885912,1753139440808,-460.0,0.00017869,2]
[373885914,1753139440820,-460.0,0.00017869,2]
[373885916,1753139440829,-460.0,0.00017869,2]
[373885918,1753139440839,-460.0,0.00017869,2]
[373885920,1753139440848,-474.79582029,0.00017869,2]
[373885922,1753139440859,-460.0,0.00017869,2]
[373885924,1753139440868,-460.0,0.00017869,2]
[373885926,1753139440879,-460.0,0.00017869,2]
[373885927,1753139440889,-460.0,0.00017869,2]
[373885929,1753139440898,-460.0,0.00017869,2]
[373885931,1753139440907,-460.0,0.00017869,2]
[373885933,1753139440916,-460.0,0.00017869,2]
[373885935,1753139440926,-460.62105829,0.00017869,2]
[373885937,1753139440935,-460.0,0.00017869,2]
[373885939,1753139440944,-460.0,0.00017869,2]
[373885940,1753139440954,-460.0,0.00017869,2]
[373885942,1753139440963,-460.0,0.00017869,2]
[373885943,1753139440972,-460.0,0.00017869,2]
[373885944,1753139440981,-460.0,0.00017869,2]
[373885945,1753139440990,-460.0,0.00017869,2]
[373885946,1753139440999,-460.0,0.00017869,2]
[373885947,1753139441008,-460.0,0.00017869,2]
[373885948,1753139441018,-460.0,0.00017869,2]
[373885949,1753139441027,-460.0,0.00017869,2]
[373885950,1753139441036,-460.0,0.00017869,2]
[373885951,1753139441045,-460.0,0.00017869,2]
[373885952,1753139441055,-460.0,0.00017869,2]
[373885953,1753139441064,-460.0,0.00017869,2]
[373885954,1753139441074,-716.6,0.00017869,2]
[373885955,1753139441084,-460.0,0.00017869,2]
[373885956,1753139441094,-460.0,0.00017869,2]
[373885957,1753139441103,-460.36567481,0.00017869,2]
[373885958,1753139441113,-460.0,0.00017869,2]
[373885959,1753139441123,-460.0,0.00017869,2]
[373885960,1753139441132,-460.0,0.00017869,2]
[373885961,1753139441141,-460.0,0.00017869,2]
[373885962,1753139441151,-460.0,0.00017869,2]
[373885963,1753139441161,-475.97,0.00017869,2]
[373885964,1753139441170,-460.0,0.00017869,2]
[373885965,1753139441180,-460.0,0.00017869,2]
[373885966,1753139441190,-460.0,0.00017869,2]
[373885967,1753139441200,-540.0,0.00017869,2]
[373885968,1753139441211,-460.0,0.00017869,2]
[373885969,1753139441222,-460.0,0.00017869,2]
[373885970,1753139441232,-2571.87,0.00017869,2]
[373885971,1753139441243,-460.0,0.00017869,2]
[373885972,1753139441254,-460.0,0.00017869,2]
[373885973,1753139441264,-735.27,0.00017869,2]
[373885974,1753139441274,-460.0,0.00017869,2]
[373885975,1753139441284,-500.0,0.00017869,2]
[373885976,1753139441294,-460.0,0.00017869,2]
[373885977,1753139441303,-460.0,0.00017869,2]
[373885978,1753139441313,-460.0,0.00017869,2]
[373885979,1753139441322,-460.0,0.00017869,2]
[373885980,1753139441331,-460.0,0.00017869,2]
[373885981,1753139441340,-460.0,0.00017869,2]
[373885982,1753139441350,-982.68,0.00017869,2]
[373885983,1753139441359,-460.0,0.00017869,2]
[373885984,1753139441368,-460.0,0.00017869,2]
[373885985,1753139441380,-460.0,0.00017869,2]
[373885986,1753139441391,-460.0,0.00017869,2]
[373885987,1753139441402,-460.0,0.00017869,2]
[373885988,1753139441412,-460.0,0.00017869,2]
[373885989,1753139441422,-460.0,0.00017869,2]
[373885990,1753139441432,-460.0,0.00017869,2]
[373885991,1753139441442,-460.0,0.00017869,2]
[373885992,1753139441451,-460.0,0.00017869,2]
[373885993,1753139441461,-506.73350798,0.00017869,2]
[373885995,1753139441470,-460.0,0.00017869,2]
[373885996,1753139441479,-460.0,0.00017869,2]
[373885997,1753139441488,-460.0,0.00017869,2]
[373885999,1753139441497,-460.0,0.00017869,2]
[373886000,1753139441508,-460.0,0.00017869,2]
[373886002,1753139441517,-460.0,0.00017869,2]
[373886004,1753139441526,-460.0,0.00017869,2]
[373886006,1753139441535,-460.40916096,0.00017869,2]
[373886008,1753139441545,-460.0,0.00017869,2]
[373886010,1753139441555,-460.0,0.00017869,2]
[373886012,1753139441564,-460.0,0.00017869,2]
[373886014,1753139441574,-460.0,0.00017869,2]
[373886016,1753139441583,-460.0,0.00017869,2]
[373886018,1753139441592,-590.96505809,0.00017869,2]
[373886020,1753139441602,-460.0,0.00017869,2]
[373886022,1753139441611,-462.41489199,0.00017869,2]
[373886024,1753139441621,-460.0,0.00017869,2]
[373886026,1753139441634,-460.0,0.00017869,2]
[373886028,1753139441643,-460.0,0.00017869,2]
[373886030,1753139441652,-518.99854476,0.00017869,2]
[373886032,1753139441662,-460.0,0.00017869,2]
[373886034,1753139441671,-542.08069006,0.00017869,2]
[373886036,1753139441681,-430.0,0.00017869,2]
[373886038,1753139441690,-460.0,0.00017869,2]
[373886041,1753139441700,-460.0,0.00017869,2]
[373886042,1753139441710,-460.0,0.00017869,2]
[373886045,1753139441719,-460.0,0.00017869,2]
[373886047,1753139441728,-811.79,0.00017869,2]
[373886048,1753139441738,-460.0,0.00017869,2]
[373886050,1753139441747,-460.0,0.00017869,2]
[373886053,1753139441757,-460.0,0.00017869,2]
[373886055,1753139441767,-773.27,0.00017869,2]
[373886057,1753139441777,-287.29681853,0.00017869,2]
[373886059,1753139441787,-460.0,0.00017869,2]
[373886061,1753139441797,-505.34,0.00017869,2]
[373886062,1753139441807,-460.0,0.00017869,2]
[373886064,1753139441819,-460.0,0.00017869,2]
[373886067,1753139441829,-460.0,0.00017869,2]
[373886069,1753139441838,-460.0,0.00017869,2]
[373886071,1753139441848,-460.36881647,0.00017869,2]
[373886073,1753139441858,-169.32318871,0.00017869,2]
[373886075,1753139441875,-460.0,0.00017869,2]
[373886077,1753139441887,-460.0,0.00017869,2]
[373886079,1753139441899,-460.0,0.00017869,2]
[373886081,1753139441909,-460.0,0.00017869,2]
[373886083,1753139441918,-1293.62,0.00017869,2]
[373886085,1753139441928,-460.0,0.0001787,2]
[373886087,1753139441938,-460.0,0.0001787,2]
[373886089,1753139441947,-463.93652107,0.0001787,2]
[373886091,1753139441957,-460.0,0.0001787,2]
[373886093,1753139441966,-460.0,0.0001787,2]
[373886095,1753139441976,-460.0,0.0001787,2]
[373886097,1753139441985,-460.0,0.0001787,2]
[373886099,1753139441994,-460.0,0.0001787,2]
[373886101,1753139442004,-460.0,0.0001787,2]
[373886103,1753139442013,-460.0,0.0001787,2]
[373886105,1753139442022,-500.0,0.0001787,2]
[373886107,1753139442031,-694.46,0.0001787,2]
[373886109,1753139442040,-641.97,0.0001787,2]
[373886111,1753139442050,-1451.97,0.0001787,2]
[373886113,1753139442061,-460.0,0.0001787,2]
[373886114,1753139442070,-460.0,0.0001787,2]
[373886117,1753139442080,-461.82414233,0.0001787,2]
[373886119,1753139442090,-460.0,0.0001787,2]
[373886121,1753139442099,-460.0,0.0001787,2]
[373886123,1753139442109,-460.0,0.0001787,2]
[373886125,1753139442118,-472.94,0.0001787,2]
[373886127,1753139442129,-686.62,0.0001787,2]
[373886129,1753139442138,-460.0,0.00017871,2]
[373886131,1753139442148,-460.0,0.00017871,2]
[373886133,1753139442157,-387.82226165,0.00017871,2]
[373886135,1753139442166,-460.0,0.00017871,2]
[373886137,1753139442175,-460.0,0.00017871,2]
[373886139,1753139442185,-460.0,0.00017871,2]
[373886141,1753139442195,-460.0,0.00017871,2]
[373886152,1753139442290,-460.0,0.00017871,2]
[373886154,1753139442300,-794.14,0.00017871,2]
[373886156,1753139442311,-460.04491976,0.00017871,2]
[373886158,1753139442320,-470.43062227,0.00017871,2]
[373886160,1753139442329,-460.0,0.00017871,2]
[373886162,1753139442339,-460.0,0.00017871,2]
[373886164,1753139442348,-460.0,0.00017871,2]
[373886166,1753139442358,-460.0,0.00017871,2]
[373886168,1753139442367,-460.0,0.00017871,2]
[373886171,1753139442380,-460.0,0.00017871,2]
[373886173,1753139442389,-460.0,0.00017871,2]
[373886175,1753139442398,-460.0,0.00017871,2]
[373886177,1753139442408,-460.0,0.00017871,2]
[373886178,1753139442418,-500.0,0.00017871,2]
[373886180,1753139442427,-500.0,0.00017871,2]
[373886183,1753139442437,-460.0,0.00017871,2]
[373886184,1753139442446,-460.0,0.00017871,2]
[373886186,1753139442455,-460.0,0.00017871,2]
[373886189,1753139442465,-410.59090171,0.00017871,2]
[373886191,1753139442474,-460.0,0.00017871,2]
[373886192,1753139442483,-956.21,0.00017871,2]
[373886195,1753139442493,-460.0,0.00017871,2]
[373886196,1753139442502,-224.49972482,0.00017871,2]
[373886198,1753139442512,-460.0,0.00017871,2]
[373886200,1753139442521,-460.0,0.00017871,2]
[373886202,1753139442531,-460.0,0.00017871,2]
[373886204,1753139442540,-460.0,0.00017871,2]
[373886207,1753139442549,-460.0,0.00017871,2]
[373886209,1753139442559,-460.0,0.00017871,2]
[373886211,1753139442569,-460.0,0.00017871,2]
[373886213,1753139442578,-460.0,0.00017871,2]
[373886215,1753139442588,-460.0,0.00017871,2]
[373886218,1753139442597,-460.0,0.00017871,2]
[373886220,1753139442606,-460.0,0.00017871,2]